Cogmind - Beta 9.6 @@@ ROGUE MODE // 2020.04.24 @ 13:51:04 Player: TravelDemon Result: Destroyed by as-18060 with Assembled Rifle Performance ------------- Evolutions (0) 0 Regions Visited (4) 800 Robots Destroyed (5) 25 Value Destroyed (209) 209 Prototype IDs (0) 0 Alien Tech Used (0) 0 Bonus (50) 50 TOTAL SCORE: 1084 Bonus ------- Follower Combat Kills 50 Cogmind --------- Core Integrity 0/250 Matter 300/300 Energy 100/100 System Corruption 0% Temperature Cool (0) Movement Core (50) Location -9/Mines Parts ------- > --- POWER (1) -------- (None) > --- PROPULSION (2) --- (None) > --- UTILITY (2) ------ (None) > --- WEAPON (2) ------- (None) > --- INVENTORY (4) ---- Aluminum Leg Large Storage Unit Rocket Launcher Mining Laser Peak State ------------ > --- POWER ------------ Light Nuclear Core > --- PROPULSION ------- Aluminum Leg Aluminum Leg > --- UTILITY ---------- Small Storage Unit Utility Shielding > --- WEAPON ----------- Medium Laser Assault Rifle > --- INVENTORY -------- Aluminum Leg Improved Heat Sink Light Armor Plating Heavy Assault Rifle Rocket Launcher Mining Laser [Rating: 10] Favorites ----------- Power Light Nuclear Core Engine Ion Engine Power Core Light Nuclear Core Propulsion Aluminum Leg Leg Aluminum Leg Utility Small Storage Unit Storage Small Storage Unit Protection Utility Shielding Weapon Medium Laser Energy Gun Medium Laser Ballistic Gun Heavy Assault Rifle Build | -11 -10 -10 -10 -9 ------- Run | Scr Mat Min Exi Min Slots Evolved . | . . . . . Power . | . . . . . Propulsion . | . . . . . Utility . | . . . . . Weapon . | . . . . . Parts Attached 11 | 6 . 5 . . Power 2 | 1 . 1 . . Engine 1 | 1 . . . . Core 1 | . . 1 . . Reactor . | . . . . . Propulsion 3 | 2 . 1 . . Treads . | . . . . . Leg 3 | 2 . 1 . . Wheel . | . . . . . Hover . | . . . . . Flight . | . . . . . Utility 2 | 1 . 1 . . Device . | . . . . . Storage 1 | 1 . . . . Processor . | . . . . . Hackware . | . . . . . Protection 1 | . . 1 . . Artifact . | . . . . . Weapon 4 | 2 . 2 . . Energy Gun 1 | . . 1 . . Energy Cannon . | . . . . . Ballistic Gun 3 | 2 . 1 . . Ballistic Cannon . | . . . . . Launcher . | . . . . . Special Weapon . | . . . . . Impact Weapon . | . . . . . Slashing Weapon . | . . . . . Piercing Weapon . | . . . . . Special Melee Weapon . | . . . . . Unidentified Prototypes . | . . . . . Parts Lost 2 | . . 2 . . Power . | . . . . . Propulsion . | . . . . . Utility . | . . . . . Weapon 2 | . . 2 . . Highest Loss Streak 1 | . . 1 . . Average Slot Usage (%) 95 | . 85 95 100 80 Engine 3 | . 14 6 . . Core 9 | . . 7 14 11 Leg 27 | . 28 28 28 22 Storage 13 | . 14 14 14 11 Protection 10 | . . 10 14 11 Energy Gun 11 | . . 12 14 11 Ballistic Gun 15 | . 28 15 14 11 Naked Turns 20 | . . . . 20 Heaviest Build 15 | 12 12 15 15 15 Greatest Support 20 | 20 20 20 20 20 Greatest Overweight (x) 3 | 3 . . . . Average Overweight (x) . | 1 . . . . Largest Inventory Capacity 6 | 6 6 6 6 6 Average Capacity 5 | 5 6 6 6 5 Most Carried 6 | 1 1 6 5 5 Average Carried 4 | . 1 4 5 4 Final Capacity 6 | 6 6 6 6 4 Final Carried 5 | 1 1 5 5 4 Class Distribution -------------------- 100% | Mutant Dominant Class ---------------- Mutant | -10/Materials Mutant | -10/Mines Mutant | -10/Exiles Mutant | -9/Mines Resources | -11 -10 -10 -10 -9 ----------- Run | Scr Mat Min Exi Min Matter Collected 406 | 213 46 147 . . Remotely . | . . . . . Salvage Created 249 | . 46 203 . . Parts 11 | . 4 7 . . Haulers Intercepted . | . . . . . Recyclers Shooed . | . . . . . Parts Field Recycled . | . . . . . Retrieved Matter . | . . . . . Parts Self-Destructed . | . . . . . Prevented . | . . . . . Kills | -11 -10 -10 -10 -9 ------- Run | Scr Mat Min Exi Min Combat Hostiles Destroyed 5 | . 1 4 . . Guns 5 | . 1 4 . . Classes Destroyed 1 | . 1 . . . Grunt 5 | . 1 4 . . Best Kill Streak 2 | . 1 2 . . Combat Bots Only 2 | . 1 2 . . Max Kills in Single Turn 1 | . 1 1 . . Gunslinging . | . . . . . Exploded . | . . . . . Melee . | . . . . . Uniques/NPCs Destroyed . | . . . . . Combat | -11 -10 -10 -10 -9 -------- Run | Scr Mat Min Exi Min Damage Taken 675 | . 78 372 . 225 Core 260 | . 32 41 . 187 Absorbed by Shields . | . . . . . Core Remaining (%) 100 | 100 . . . . Volleys Fired 30 | . 6 23 . 1 Largest 2 | . 2 2 . 1 Hottest 70 | . 40 70 . 50 Shots Fired 57 | . 12 44 . 1 Gun 57 | . 12 44 . 1 Cannon . | . . . . . Launcher . | . . . . . Special . | . . . . . Kinetic 48 | . 12 36 . . Thermal 9 | . . 8 . 1 Explosive . | . . . . . Electromagnetic . | . . . . . Robot Hit Streak 7 | . 6 7 . . Robot Miss Streak 3 | . 1 3 . 1 Penetration Max . | . . . . . Secondary Targets 2 | . . 2 . . Max Gunslinging Chain 1 | . . 1 . . Shots Hit Robots 37 | . 10 27 . . Core Hits 12 | . 2 7 . 3 Critical Hits . | . . . . . Critical Kills . | . . . . . Critical Parts Destroyed . | . . . . . Melee Attacks . | . . . . . Impact . | . . . . . Slashing . | . . . . . Piercing . | . . . . . Sneak Attacks . | . . . . . Combat Hostiles . | . . . . . Follow-up Attacks . | . . . . . Damage Inflicted 434 | . 102 271 . 61 Guns 386 | . 102 271 . 13 Cannons . | . . . . . Explosions . | . . . . . Melee . | . . . . . Ramming 48 | . . . . 48 Kinetic 324 | . 102 222 . . Thermal 62 | . . 49 . 13 Explosive . | . . . . . Electromagnetic . | . . . . . Impact . | . . . . . Slashing . | . . . . . Piercing . | . . . . . Highest Corruption . | . . . . . Average Corruption . | . . . . . Corruption Purged . | . . . . . Overload Shots . | . . . . . Overflow Damage . | . . . . . Projectiles . | . . . . . Explosions . | . . . . . Melee . | . . . . . Knockbacks 1 | . . . . 1 Impact 1 | . . . . 1 Kinetic . | . . . . . Secondary . | . . . . . Self-Inflicted Damage 22 | . . . . 22 Shots . | . . . . . Rammed 7 | . . . . 7 Targets Rammed 7 | . . . . 7 Kicked . | . . . . . Crushed . | . . . . . Highest Temperature 54 | . 12 54 . 14 Average Temperature 16 | . 7 18 . 10 Received Heat Transfer 275 | . 42 213 . 20 Siege Activations . | . . . . . Robots Corrupted . | . . . . . Combat Hostiles . | . . . . . Parts Fried . | . . . . . Impact Corruptions . | . . . . . Robots Melted . | . . . . . Combat Hostiles . | . . . . . Parts Melted 1 | . . 1 . . Heat Transferred 185 | . . 148 . 37 Parts Sabotaged . | . . . . . Parts Stolen . | . . . . . Parts Stripped . | . . . . . Power Chain Reactions . | . . . . . Missiles Intercepted . | . . . . . Alert | -11 -10 -10 -10 -9 ------- Run | Scr Mat Min Exi Min Peak Influence 115 | . 20 115 . 45 Average Influence 40 | . 14 59 . 3 Maximum Alert Level . | . . . . . Low Security (%) 100 | 100 100 100 . 100 Level 1 . | . . . . . Level 2 . | . . . . . Level 3 . | . . . . . Level 4 . | . . . . . Level 5 . | . . . . . High Security . | . . . . . Max Security . | . . . . . Squads Dispatched 1 | . . 1 . . Investigation 1 | . . 1 . . Extermination . | . . . . . Reinforcement . | . . . . . Assault . | . . . . . Garrison . | . . . . . Intercept . | . . . . . Construction Impeded . | . . . . . Haulers Reinforced . | . . . . . Stealth | -11 -10 -10 -10 -9 --------- Run | Scr Mat Min Exi Min Distress Signals . | . . . . . Communications Jammed . | . . . . . Distress Signals . | . . . . . Times Spotted 27 | . 3 8 . 16 Peak Tracking Total 16 | . 2 2 . 16 Tactical Retreats . | . . . . . Traps | -11 -10 -10 -10 -9 ------- Run | Scr Mat Min Exi Min Traps Triggered . | . . . . . Indirectly . | . . . . . Trap Hack Attempts . | . . . . . Triggered . | . . . . . Disarmed . | . . . . . Reprogrammed . | . . . . . Reused . | . . . . . Traps Extracted . | . . . . . Installed . | . . . . . Triggered . | . . . . . Machines | -11 -10 -10 -10 -9 ---------- Run | Scr Mat Min Exi Min Machines Disabled . | . . . . . Max in Single Turn . | . . . . . Machines Sabotaged . | . . . . . Garrisons Compromised . | . . . . . Overloaded Fab Kills . | . . . . . Fab Network Shutdowns . | . . . . . Hacking | -11 -10 -10 -10 -9 --------- Run | Scr Mat Min Exi Min Machines Accessed 5 | . . 1 4 . Terminals . | . . . . . Fabricators . | . . . . . Repair Stations . | . . . . . Recycling Units . | . . . . . Scanalyzers . | . . . . . Garrison Access . | . . . . . Total Hacks 5 | . . 1 4 . Successful 5 | . . 1 4 . Failed . | . . . . . Catastrophic . | . . . . . Database Lockouts . | . . . . . Manual . | . . . . . Terminals . | . . . . . Fabricators . | . . . . . Repair Stations . | . . . . . Recycling Units . | . . . . . Scanalyzers . | . . . . . Garrison Access . | . . . . . Terminal Hacks 5 | . . 1 4 . Record 4 | . . . 4 . Open Door 1 | . . 1 . . Fabricator Hacks . | . . . . . Repair Station Hacks . | . . . . . Recycling Unit Hacks . | . . . . . Scanalyzer . | . . . . . Garrison Access Hacks . | . . . . . Unauthorized Hacks . | . . . . . Terminals . | . . . . . Fabricators . | . . . . . Repair Stations . | . . . . . Recycling Units . | . . . . . Scanalyzers . | . . . . . Garrison Access . | . . . . . Data Cores Recovered . | . . . . . Used . | . . . . . Hacking Detections . | . . . . . Full Trace Events . | . . . . . Feedback Events . | . . . . . Feedback Blocked . | . . . . . Robot Schematics Acquired . | . . . . . Robots Built . | . . . . . Matter . | . . . . . Time . | . . . . . Total Robot Build Rating . | . . . . . Part Schematics Acquired . | . . . . . Parts Built . | . . . . . Matter . | . . . . . Time . | . . . . . Total Part Build Rating . | . . . . . Parts Repaired . | . . . . . Time . | . . . . . Parts Recycled . | . . . . . Recycled Matter . | . . . . . Retrieved Matter . | . . . . . Retrieved Components . | . . . . . Parts Scanalyzed . | . . . . . Part Schematics Acquired . | . . . . . Parts Damaged . | . . . . . Bothacking | -11 -10 -10 -10 -9 ------------ Run | Scr Mat Min Exi Min Used RIF Installer . | . . . . . Robots Hacked . | . . . . . Non-combat . | . . . . . Combat . | . . . . . Robot Hacks Applied . | . . . . . Relay Couplers Released . | . . . . . Robots Rewired . | . . . . . Allies Hacked . | . . . . . Hacks Repelled . | . . . . . Allies | -11 -10 -10 -10 -9 -------- Run | Scr Mat Min Exi Min Total Allies 1 | . . 1 . . Largest Group 1 | . . 1 . . Highest-Rated Group 31 | . . 31 . . Highest-Rated Ally 31 | . . 31 . . Total Orders . | . . . . . Ally Attacks 8 | . . 8 . . Total Damage 102 | . . 102 . . Kills 2 | . . 2 . . Allies Corrupted . | . . . . . Allies Melted . | . . . . . Intel | -11 -10 -10 -10 -9 ------- Run | Scr Mat Min Exi Min Robot Analysis Total . | . . . . . Derelict Logs Recovered 1 | . . 1 . . Drone Launches . | . . . . . Drone Recoveries . | . . . . . Exploration | -11 -10 -10 -10 -9 ------------- Run | Scr Mat Min Exi Min Turns Passed 1648 | 60 170 580 730 108 Spaces Moved 1277 | 40 119 411 609 98 Core 65 | 38 . . . 27 Treads . | . . . . . Legs 1212 | 2 119 411 609 71 Wheels . | . . . . . Hover . | . . . . . Flight . | . . . . . Fastest Speed 50 | 50 120 120 120 50 Average Speed 118 | 123 120 120 120 100 Slowest Speed 200 | 200 120 120 120 120 Overloaded Moves . | . . . . . Propulsion Burnouts . | . . . . . Robots Hopped . | . . . . . Cave-ins Triggered . | . . . . . Exploration Rate (%) 45 | 3 20 89 91 22 Regions Visited 4 Branch Regions 3 Pre-discovered Areas 1 | . . 1 . . Known Exits Taken . | . . . . . Unknown Exits Taken 4 | 1 1 1 1 . Scrap Searched 2 | . . 2 . . Spaces Dug . | . . . . . Terrain Destroyed . | . . . . . Melee . | . . . . . Projectile . | . . . . . AOE . | . . . . . Actions | -11 -10 -10 -10 -9 --------- Run | Scr Mat Min Exi Min Total 1352 | 47 135 456 608 106 Wait 19 | 1 11 7 . . Move 1273 | 39 118 410 608 98 Hop . | . . . . . Pick Up 9 | 1 . 8 . . Fast Attach 8 | 6 . 2 . . Attach 2 | . . 2 . . Detach . | . . . . . Swap 1 | . . 1 . . Drop 3 | . . 3 . . Fire 30 | . 6 23 . 1 Melee . | . . . . . Ram 7 | . . . . 7 Kick . | . . . . . Crush . | . . . . . Escape Stasis . | . . . . . Rewire . | . . . . . Trap . | . . . . . Miscellaneous . | . . . . . Route ------- -11/Scrapyard -10/Materials -10/Mines (discovered 3 exits: [*Mat x2] / *Exi) -10/Exiles -9/Mines History --------- Turn | Location | Event 3 | -11/Scrapyard | Discovered new exit (range 15) 61 | -11/Scrapyard | Entered Materials 213 | -10/Materials | Discovered new exit (range 15) 231 | -10/Materials | Entered Mines 241 | -10/Mines | Met a Derelict bent on vengeance 314 | -10/Mines | Build established: Mutant 378 | -10/Mines | Joined a pair of Derelicts in attacking an 0b10 outpost 423 | -10/Mines | Learned location of Zion (-7) 426 | -10/Mines | Discovered new exit (range 12) 433 | -10/Mines | Received a Mining Laser from a helpful Derelict 482 | -10/Mines | Received a Rocket Launcher from a helpful Derelict 700 | -10/Mines | Met a Derelict shopkeep closing up shop 736 | -10/Mines | Discovered new exit (range 15) 806 | -10/Mines | Deemed a non-threat by the Exiles lab entrance 806 | -10/Mines | Discovered new exit (range 5) 811 | -10/Mines | Entered Exiles 811 | -10/Exiles | Found Exiles lab abandoned 1452 | -10/Exiles | Discovered new exit (range 10) 1541 | -10/Exiles | Entered Mines 1592 | -9/Mines | Assembled infested the area 1629 | -9/Mines | Released all parts (7) 1645 | -9/Mines | Core integrity fell below 50% 1648 | -9/Mines | Core integrity fell below 20% 1649 | -9/Mines | Destroyed by as-18060 with Assembled Rifle Last Messages --------------- 01592_ ALERT: Infestation in the mines, dispatching Demolisher response squad. 01627_ Knocked back. 01628_ C-30 ARC bursts open, deploying its payload. 01628_ D-53 Grenadier unfolds itself. 01629_ Released Aluminum Leg. 01629_ Released Sml. Storage Unit. 01629_ Released Med. Laser. 01629_ Released Aluminum Leg. 01629_ Released Utility Shielding. 01629_ Released Hvy. Assault Rifle. 01629_ Released Lgt. Nuclear Core. 01632_ Slammed into D-53 Grenadier. 01632_ D-53 Grenadier knocked back. 01633_ Slammed into D-53 Grenadier. 01637_ Slammed into as-15806. 01646_ Slammed into as-25890. 01647_ Slammed into as-18060. 01648_ Slammed into as-35198. 01648_ Destabilizing: Core damaged (-7). Map ----- +----------------------------------------------------+ | ????????????????????????####??####???????????????? | | ???????????????????????## #### ################# | | ??????????????????????## ## | | ????################### | | ????# !=!=![[* % "%" ################## | | ????# ###########%###### ##????????????????# | | ?#### #?????????# #????##### #?????????????????# | | ?# #???????### #????????# ????????????????# | | ?# ####???????# #????????# #??????????????# | | ?# #??????????# ###????????#### #?????????????## | | ?# #??????????# #?????????????? #?????????????# | | ? ??????????# #?????????????? #?????""" #### | | ? ???## ####%#######????????? ?????""" | | ?# ???# % #????????? ?#T ###### | | ?# ??# #### !! #?????????? #?# ????????## | | ? ??????????# !! #?????????? ##????????????# | | ?# ??????????# !! #???????????#?????????????# | | ?? ##??????????# !! #?????????????????????????## | | ?? ????????????# #??????????????????????????# | | ?? ????????????### #??????????????????????????? | | ?? ??????????????## ###??????????????????????????? | | ??#???????????????# #????????????????????????????? | | ??????????????????# #????????????????????????????? | | ?????????# ######## #????????????????????????????? | | ?????????# aa############# #??????????????? | | ???????????######## a aa@a $ a #??????????????? | | ??????????????????########a#### ##???????????????? | | ?????????????????????????? #?????????????????????? | | ???????????????????????????#?????????????????????? | | ?????????????????????????????????????????????????? | | ?????????????????????????????????????????????????? | | ?????????????????????????????????????????????????? | | ?????????????????????????????????????????????????? | | ?????????????????????????????????????????????????? | | ?????????????????????????????????????????????????? | | ?????????????????????????????????????????????????? | | ?????????????????????????????????????????????????? | | ?????????????????????????????????????????????????? | | ?????????????????????????????????????????????????? | | ?????????????????????????????????????????????????? | | ?????????????????????????????????????????????????? | | ?????????????????????????????????????????????????? | | ?????????????????????????????????????????????????? | | ?????????????????????????????????????????????????? | | ?????????????????????????????????????????????????? | | ?????????????????????????????????????????????????? | | ?????????????????????????????????????????????????? | | ?????????????????????????????????????????????????? | | ?????????????????????????????????????????????????? | | ?????????????????????????????????????????????????? | +----------------------------------------------------+ Best States ------------- Heat Dissipation 25 Energy Generation 14 Energy Capacity 250 Matter Stores 300 Matter Capacity 300 Sight Range 16 Terrain Scan Density 10 Utility Shielding 33 Evasion (%) 50 Item Schematics ----------------- None Robot Schematics ------------------ None Fabricated ------------ Nothing Alien Tech Used ----------------- None Achievements -------------- None Challenges ------------ None Game ------ Seed RocketHeavyWell Manual? 0 Play Time 00:08:01 Cumulative 24.8 hours Start 2020.04.24 @ 13:43:46 End 2020.04.24 @ 13:51:04 Sessions 1 Manual Loads 0 Difficulty Rogue Special Mode None Game No. 46 Rogue 44 Adventurer 0 Explorer 2 Win Type - Total 0 Types 0/0/0/0/0/0/0 Lore% 24 Gallery% 31 Achievement% 25 Wizard Run 0 Options --------- ASCII 0 Keyboard 1 Movement Numpad Keybinds 0 Fullscreen 2 Font 18/SmallcapsGlow Map View 76x50 Tactical HUD 1 Map Filters NONE Filters NONE Steam 1 RUN: f15c8708-fa00-4169-99df-5aa08697145e